[Event "DSAM Bad Wildungen 2024"]
[Site "Bad Wildungen"]
[Date "2024.08.01"]
[Round "1.36"]
[White "Sviridov, Vitaliy"]
[Black "Beyer, Michael"]
[Result "1-0"]
[Annotator "NA RC"]
[ECO "A43"]
[WhiteElo "1771"]
[BlackElo "1763"]
[PlyCount "95"]
[EventDate "2024.07.31"]
[EventCountry "GER"]
[SourceTitle "playchess.com"]
[Source "ChessBase"]
[SourceQuality "1"]
[TimeControl "40/5400+30:900+30"]

1. d4 {[%emt 0:00:05]} c5 {[%emt 0:00:12]} 2. d5 {[%emt 0:02:04]} d6 {[%emt 0:00:23]} 3. e4 {[%emt 0:00:18]} g6 {[%emt 0:00:46]} 4. Nc3 {[%emt 0:00:54]} Bg7 {[%emt 0:00:27]} 5. Bc4 {[%emt 0:00:26]} Nf6 {[%emt 0:01:18]} 6. Bg5 {[%emt 0:02:00]} Qa5 {[%emt 0:07:20]} 7. Qd2 {[%emt 0:01:13]} a6 {[%emt 0:01:26]} 8. a4 {[%emt 0:01:40]} b5 {[%emt 0:05:01]} 9. Bxf6 {[%emt 0:13:10]} Bxf6 {[%emt 0:00:47]} 10. Be2 {[%emt 0:01:09]} Nd7 {[%emt 0:07:20]} 11. Nf3 {[%emt 0:00:39]} Nb6 {[%emt 0:08:12]} 12. O-O {[%emt 0:03:20]} b4 {[%emt 0:00:28]} 13. Nd1 {[%emt 0:01:03]} Bd7 {[%emt 0:04:19]} 14. Ra2 {[%emt 0:05:16]} c4 {[%emt 0:03:26]} 15. b3 {[%emt 0:07:58]} Bb5 {[%emt 0:12:07]} 16. Ne3 {[%emt 0:17:19]} c3 {[%emt 0:09:17]} 17. Qd1 {[%emt 0:02:49]} Bxe2 {[%emt 0:03:05]} 18. Qxe2 {[%emt 0:00:03]} Nd7 {[%emt 0:02:29]} 19. Raa1 {[%emt 0:04:00]} O-O {[%emt 0:03:31]} 20. Rad1 {[%emt 0:00:36]} Nc5 {[%emt 0:02:15]} 21. g3 {[%emt 0:08:25]} Qc7 {[%emt 0:01:11]} 22. Nc4 {[%emt 0:00:36]} Rfd8 {[%emt 0:03:26]} 23. Kg2 {[%emt 0:00:09]} Bg7 {[%emt 0:00:27]} 24. h4 {[%emt 0:00:13]} e6 {[%emt 0:01:26]} 25. Ng5 {[%emt 0:04:08]} Ra7 {[%emt 0:02:15]} 26. f3 {[%emt 0:00:10]} h6 {[%emt 0:02:41]} 27. Nh3 {[%emt 0:00:09]} e5 {[%emt 0:01:08]} 28. Qe3 {[%emt 0:02:07]} Raa8 {[%emt 0:00:37]} 29. Nf2 {[%emt 0:00:09]} Nxa4 {[%emt 0:00:11]} 30. Ra1 {[%emt 0:00:57]} Nc5 {[%emt 0:01:33]} 31. Na5 {[%emt 0:00:38]} Rf8 {[%emt 0:02:28]} 32. Ra2 {[%emt 0:03:11]} f5 {[%emt 0:00:28]} 33. Rfa1 {[%emt 0:00:29]} f4 {[%emt 0:00:59]} 34. Qe1 {[%emt 0:01:28]} fxg3 {[%emt 0:00:43]} 35. Kxg3 {[%emt 0:01:53]} Qf7 {[%emt 0:00:05]} 36. Qe3 {[%emt 0:01:53]} Qf4+ {[%emt 0:02:03]} 37. Qxf4 {[%emt 0:00:04]} Rxf4 {[%emt 0:00:26]} 38. Nh3 {[%emt 0:00:32]} Rf7 {[%emt 0:01:02]} 39. Nc6 {[%emt 0:00:18]} Raf8 {[%emt 0:00:33]} 40. Ng1 {[%emt 0:00:51]} h5 {[%emt 0:01:54]} 41. Nxb4 {[%emt 0:15:16]} Bh6 {[%emt 0:15:37]} 42. Nxa6 {[%emt 0:08:18]} Bf4+ {[%emt 0:00:26]} 43. Kg2 {[%emt 0:01:24]} Nxe4 {[%emt 0:02:18]} 44. fxe4 {[%emt 0:00:57]} Be3 {[%emt 0:00:08]} 45. Nh3 {[%emt 0:01:32]} Rf3 {[%emt 0:02:11]} 46. Nc7 {[%emt 0:00:51]} Bf2 {[%emt 0:00:34]} 47. Ra8 {[%emt 0:01:36]} Rg3+ {[%emt 0:00:11]} 48. Kh2 {[%emt 0:00:32]} 1-0

[Event "DSAM Bad Wildungen 2024"]
[Site "Bad Wildungen"]
[Date "2024.08.01"]
[Round "1.38"]
[White "Roessling, Laura Marie"]
[Black "Noll, Raphael"]
[Result "1/2-1/2"]
[Annotator "NA RC"]
[ECO "C43"]
[WhiteElo "1564"]
[BlackElo "1598"]
[PlyCount "93"]
[EventDate "2024.07.31"]
[EventCountry "GER"]
[SourceTitle "playchess.com"]
[Source "ChessBase"]
[SourceQuality "1"]
[TimeControl "40/5400+30:900+30"]

1. e4 {[%emt 0:00:06]} e5 {[%emt 0:00:06]} 2. Nf3 {[%emt 0:00:31]} Nf6 {[%emt 0:00:36]} 3. d4 {[%emt 0:02:32]} Nxe4 {[%emt 0:06:36]} 4. Bd3 {[%emt 0:05:20]} d5 {[%emt 0:02:32]} 5. Nxe5 {[%emt 0:01:55]} Nd7 {[%emt 0:04:24]} 6. Nxd7 {[%emt 0:02:53]} Bxd7 {[%emt 0:01:27]} 7. Nd2 {[%emt 0:01:43]} Nxd2 {[%emt 0:08:15]} 8. Bxd2 {[%emt 0:01:51]} Bd6 {[%emt 0:03:08]} 9. c3 {[%emt 0:07:28]} Qh4 {[%emt 0:05:26]} 10. Qe2+ {[%emt 0:21:24]} Be6 {[%emt 0:04:35]} 11. Bc2 {[%emt 0:07:45]} O-O-O {[%emt 0:03:39]} 12. O-O-O {[%emt 0:06:59]} Rhe8 {[%emt 0:03:32]} 13. g3 {[%emt 0:03:49]} Qf6 {[%emt 0:08:10]} 14. Be3 {[%emt 0:02:32]} Bf5 {[%emt 0:04:28]} 15. Qf3 {[%emt 0:04:15]} Bxc2 {[%emt 0:06:45]} 16. Qxf6 {[%emt 0:00:36]} gxf6 {[%emt 0:00:16]} 17. Kxc2 {[%emt 0:00:18]} Re4 {[%emt 0:02:03]} 18. Rhe1 {[%emt 0:03:20]} Rde8 {[%emt 0:02:16]} 19. Kd2 {[%emt 0:04:49]} f5 {[%emt 0:04:22]} 20. Bg5 {[%emt 0:01:25]} Kd7 {[%emt 0:01:04]} 21. f3 {[%emt 0:02:18]} R4e6 {[%emt 0:03:20]} 22. Rxe6 {[%emt 0:17:41]} fxe6 {[%emt 0:02:24]} 23. Re1 {[%emt 0:00:00]} h6 {[%emt 0:02:36]} 24. Bf6 {[%emt 0:00:00]} h5 {[%emt 0:03:47]} 25. f4 {[%emt 0:00:00]} Rg8 {[%emt 0:02:10]} 26. Re3 {[%emt 0:00:00]} Rg6 {[%emt 0:01:27]} 27. Bg5 {[%emt 0:00:00]} c5 {[%emt 0:02:12]} 28. Kd3 {[%emt 0:00:00]} c4+ {[%emt 0:00:58]} 29. Kc2 {[%emt 0:00:00]} Rg8 {[%emt 0:00:50]} 30. Re1 {[%emt 0:00:00]} b5 {[%emt 0:01:32]} 31. Rb1 {[%emt 0:00:00]} b4 {[%emt 0:01:17]} 32. a3 {[%emt 0:00:24]} bxa3 {[%emt 0:03:03]} 33. bxa3 {[%emt 0:00:17]} Rb8 {[%emt 0:00:43]} 34. Rxb8 {[%emt 0:02:11]} Bxb8 {[%emt 0:00:06]} 35. a4 {[%emt 0:00:08]} Bc7 {[%emt 0:02:08]} 36. Bh6 {[%emt 0:01:12]} Kc6 {[%emt 0:00:51]} 37. Bf8 {[%emt 0:00:41]} Bd8 {[%emt 0:00:24]} 38. Bc5 {[%emt 0:01:20]} a6 {[%emt 0:02:31]} 39. Kb2 {[%emt 0:01:05]} h4 {[%emt 0:01:15]} 40. Ka3 {[%emt 0:00:45]} hxg3 {[%emt 0:00:16]} 41. hxg3 {[%emt 0:15:07]} Ba5 {[%emt 0:15:58]} 42. Bb4 {[%emt 0:01:08]} Bc7 {[%emt 0:00:30]} 43. Bc5 {[%emt 0:00:00]} Bd6 {[%emt 0:00:00]} 44. Bxd6 {[%emt 0:00:00]} Kxd6 {[%emt 0:00:00]} 45. Kb4 {[%emt 0:00:00]} Kc6 {[%emt 0:00:00]} 46. a5 {[%emt 0:00:00]} Kd6 {[%emt 0:00:00]} 47. Ka4 {[%emt 0:00:00]} 1/2-1/2

[Event "DSAM Bad Wildungen 2024"]
[Site "Bad Wildungen"]
[Date "2024.08.01"]
[Round "1.39"]
[White "Doehn, Friedemann"]
[Black "Oezkurt, Kaan"]
[Result "1-0"]
[Annotator "NA RC"]
[ECO "D02"]
[WhiteElo "1776"]
[BlackElo "1678"]
[PlyCount "103"]
[EventDate "2024.07.31"]
[EventCountry "GER"]
[SourceTitle "playchess.com"]
[Source "ChessBase"]
[SourceQuality "1"]
[TimeControl "40/5400+30:900+30"]

1. d4 {[%emt 0:00:03]} d5 {[%emt 0:00:10]} 2. Bf4 {[%emt 0:00:06]} Nf6 {[%emt 0:00:14]} 3. Nf3 {[%emt 0:00:50]} Bf5 {[%emt 0:01:46]} 4. e3 {[%emt 0:02:51]} e6 {[%emt 0:02:44]} 5. h3 {[%emt 0:00:15]} c5 {[%emt 0:02:43]} 6. Bd3 {[%emt 0:03:52]} Qa5+ {[%emt 0:09:56]} 7. c3 {[%emt 0:01:46]} Be4 {[%emt 0:09:54]} 8. O-O {[%emt 0:01:22]} Qb6 {[%emt 0:03:43]} 9. b3 {[%emt 0:14:46]} Bd6 {[%emt 0:05:56]} 10. Bxd6 {[%emt 0:09:00]} Qxd6 {[%emt 0:01:46]} 11. Bb5+ {[%emt 0:02:49]} Nbd7 {[%emt 0:05:08]} 12. Ne5 {[%emt 0:02:20]} a6 {[%emt 0:01:21]} 13. Bxd7+ {[%emt 0:00:45]} Nxd7 {[%emt 0:00:26]} 14. Nxd7 {[%emt 0:00:42]} Qxd7 {[%emt 0:11:16]} 15. dxc5 {[%emt 0:00:49]} Qb5 {[%emt 0:09:52]} 16. b4 {[%emt 0:00:54]} a5 {[%emt 0:02:08]} 17. a3 {[%emt 0:11:19]} Bd3 {[%emt 0:06:38]} 18. Re1 {[%emt 0:00:26]} Qc4 {[%emt 0:01:55]} 19. Qd2 {[%emt 0:03:27]} O-O {[%emt 0:02:10]} 20. Qb2 {[%emt 0:00:37]} b6 {[%emt 0:11:03]} 21. Nd2 {[%emt 0:00:20]} Qa6 {[%emt 0:00:20]} 22. cxb6 {[%emt 0:03:06]} Qxb6 {[%emt 0:00:19]} 23. a4 {[%emt 0:03:04]} Rfc8 {[%emt 0:04:29]} 24. b5 {[%emt 0:01:01]} Rc7 {[%emt 0:01:05]} 25. Nb3 {[%emt 0:04:00]} Rac8 {[%emt 0:01:19]} 26. Rac1 {[%emt 0:00:18]} Rc4 {[%emt 0:01:06]} 27. Red1 {[%emt 0:01:48]} Be4 {[%emt 0:02:44]} 28. Rd4 {[%emt 0:00:33]} e5 {[%emt 0:00:23]} 29. Rxc4 {[%emt 0:00:58]} Rxc4 {[%emt 0:00:02]} 30. Nd2 {[%emt 0:05:18]} Rxa4 {[%emt 0:01:13]} 31. c4 {[%emt 0:01:03]} Rb4 {[%emt 0:02:11]} 32. Qxe5 {[%emt 0:00:18]} h6 {[%emt 0:00:00]} 33. Nxe4 {[%emt 0:00:51]} dxe4 {[%emt 0:00:06]} 34. Qxe4 {[%emt 0:00:12]} Qe6 {[%emt 0:00:44]} 35. Qa8+ {[%emt 0:00:26]} Kh7 {[%emt 0:00:02]} 36. Qxa5 {[%emt 0:00:35]} Rb2 {[%emt 0:01:04]} 37. Qc3 {[%emt 0:00:48]} Ra2 {[%emt 0:00:23]} 38. c5 {[%emt 0:01:44]} Qf5 {[%emt 0:00:34]} 39. Qe1 {[%emt 0:03:53]} Rb2 {[%emt 0:00:24]} 40. b6 {[%emt 0:00:33]} Qd5 {[%emt 0:00:39]} 41. c6 {[%emt 0:16:00]} Rxb6 {[%emt 0:15:27]} 42. c7 {[%emt 0:02:53]} Rg6 {[%emt 0:00:00]} 43. Qf1 {[%emt 0:00:00]} Rc6 {[%emt 0:00:00]} 44. Rxc6 {[%emt 0:00:00]} Qxc6 {[%emt 0:00:00]} 45. Qd3+ {[%emt 0:00:00]} g6 {[%emt 0:00:00]} 46. Qd8 {[%emt 0:00:00]} Qa6 {[%emt 0:00:00]} 47. c8=Q {[%emt 0:00:00]} Qa1+ {[%emt 0:00:00]} 48. Kh2 {[%emt 0:00:00]} h5 {[%emt 0:00:00]} 49. Qg8+ {[%emt 0:00:00]} Kh6 {[%emt 0:00:00]} 50. Qcf8+ {[%emt 0:00:00]} Kg5 {[%emt 0:00:00]} 51. f4+ {[%emt 0:00:00]} Kf5 {[%emt 0:00:00]} 52. Qgxf7+ {[%emt 0:00:00]} 1-0

[Event "DSAM Bad Wildungen 2024"]
[Site "Bad Wildungen"]
[Date "2024.08.01"]
[Round "1.40"]
[White "Faust, Moritz"]
[Black "Calvi, Elias Francesco"]
[Result "1/2-1/2"]
[Annotator "NA RC"]
[ECO "B22"]
[WhiteElo "1517"]
[BlackElo "1613"]
[PlyCount "54"]
[EventDate "2024.07.31"]
[EventCountry "GER"]
[SourceTitle "playchess.com"]
[Source "ChessBase"]
[SourceQuality "1"]
[TimeControl "40/5400+30:900+30"]

1. e4 {[%emt 0:00:04]} c5 {[%emt 0:00:42]} 2. Nf3 {[%emt 0:00:05]} e6 {[%emt 0:00:16]} 3. c3 {[%emt 0:00:56]} d5 {[%emt 0:00:32]} 4. exd5 {[%emt 0:00:26]} Qxd5 {[%emt 0:00:15]} 5. d4 {[%emt 0:00:48]} cxd4 {[%emt 0:00:39]} 6. cxd4 {[%emt 0:00:53]} Nf6 {[%emt 0:01:31]} 7. Nc3 {[%emt 0:01:11]} Qd8 {[%emt 0:01:30]} 8. Be2 {[%emt 0:03:36]} Be7 {[%emt 0:01:02]} 9. O-O {[%emt 0:00:25]} O-O {[%emt 0:00:35]} 10. Be3 {[%emt 0:02:11]} a6 {[%emt 0:01:08]} 11. Qc2 {[%emt 0:00:35]} b5 {[%emt 0:01:26]} 12. Ne4 {[%emt 0:07:49]} Bb7 {[%emt 0:02:48]} 13. Nxf6+ {[%emt 0:05:03]} Bxf6 {[%emt 0:00:22]} 14. Qc5 {[%emt 0:07:19]} Qd5 {[%emt 0:03:29]} 15. Rfc1 {[%emt 0:10:20]} Nd7 {[%emt 0:03:00]} 16. Qxd5 {[%emt 0:06:01]} Bxd5 {[%emt 0:00:14]} 17. b4 {[%emt 0:02:00]} Nb6 {[%emt 0:03:44]} 18. Nd2 {[%emt 0:04:30]} Rac8 {[%emt 0:02:39]} 19. Rc5 {[%emt 0:00:43]} Be7 {[%emt 0:01:33]} 20. Rxc8 {[%emt 0:00:30]} Rxc8 {[%emt 0:00:14]} 21. a3 {[%emt 0:00:23]} f5 {[%emt 0:07:16]} 22. Nf3 {[%emt 0:05:20]} Rc2 {[%emt 0:04:28]} 23. Bf1 {[%emt 0:02:13]} Nc4 {[%emt 0:03:06]} 24. Bxc4 {[%emt 0:00:49]} Bxc4 {[%emt 0:03:09]} 25. Ne5 {[%emt 0:00:28]} Bd5 {[%emt 0:01:39]} 26. Rc1 {[%emt 0:03:25]} Rxc1+ {[%emt 0:01:14]} 27. Bxc1 {[%emt 0:00:01]} Bf6 {[%emt 0:01:06]} 1/2-1/2

[Event "DSAM Bad Wildungen 2024"]
[Site "Bad Wildungen"]
[Date "2024.08.01"]
[Round "1.41"]
[White "Guevara Ruiz, Marvin Andres"]
[Black "Shanmuganathan, Adhav"]
[Result "0-1"]
[Annotator "RC"]
[ECO "D32"]
[WhiteElo "2096"]
[BlackElo "1659"]
[PlyCount "100"]
[EventDate "2024.07.31"]
[EventCountry "GER"]
[SourceTitle "playchess.com"]
[Source "ChessBase"]
[SourceQuality "1"]
[TimeControl "40/5400+30:900+30"]

1. d4 {[%emt 0:00:04]} Nf6 {[%emt 0:00:17]} 2. c4 {[%emt 0:00:13]} e6 {[%emt 0:00:12]} 3. Nc3 {[%emt 0:00:14]} d5 {[%emt 0:00:42]} 4. e3 {[%emt 0:00:51]} c5 {[%emt 0:00:40]} 5. Nf3 {[%emt 0:00:26]} Nc6 {[%emt 0:00:34]} 6. cxd5 {[%emt 0:00:30]} exd5 {[%emt 0:00:10]} 7. b3 {[%emt 0:03:45]} cxd4 {[%emt 0:02:00]} 8. Nxd4 {[%emt 0:00:14]} Bb4 {[%emt 0:01:59]} 9. Bd2 {[%emt 0:02:32]} Nxd4 {[%emt 0:00:31]} 10. exd4 {[%emt 0:00:09]} Qa5 {[%emt 0:01:34]} 11. Qc2 {[%emt 0:04:41]} O-O {[%emt 0:04:34]} 12. Bd3 {[%emt 0:05:47]} Re8+ {[%emt 0:01:22]} 13. Ne2 {[%emt 0:00:08]} Bd7 {[%emt 0:04:49]} 14. a3 {[%emt 0:01:26]} Bxd2+ {[%emt 0:00:29]} 15. Qxd2 {[%emt 0:00:03]} Qb6 {[%emt 0:00:37]} 16. O-O {[%emt 0:00:34]} Ne4 {[%emt 0:02:18]} 17. Qb2 {[%emt 0:02:52]} Rac8 {[%emt 0:04:16]} 18. Rac1 {[%emt 0:02:09]} Rc6 {[%emt 0:05:33]} 19. Nf4 {[%emt 0:01:55]} Rxc1 {[%emt 0:01:19]} 20. Rxc1 {[%emt 0:00:38]} Qd6 {[%emt 0:01:26]} 21. g3 {[%emt 0:00:51]} g5 {[%emt 0:03:15]} 22. Ng2 {[%emt 0:01:00]} Re6 {[%emt 0:04:46]} 23. Re1 {[%emt 0:03:46]} Rh6 {[%emt 0:08:13]} 24. Qc1 {[%emt 0:08:22]} Qf6 {[%emt 0:04:36]} 25. Qe3 {[%emt 0:02:20]} Qf5 {[%emt 0:09:30]} 26. Nh4 {[%emt 0:11:24]} gxh4 {[%emt 0:01:05]} 27. Bxe4 {[%emt 0:00:13]} Qxe4 {[%emt 0:00:09]} 28. Qg5+ {[%emt 0:00:26]} Qg6 {[%emt 0:01:26]} 29. Qd8+ {[%emt 0:00:10]} Kg7 {[%emt 0:00:05]} 30. Qxd7 {[%emt 0:00:09]} hxg3 {[%emt 0:00:28]} 31. hxg3 {[%emt 0:00:35]} Qh5 {[%emt 0:00:23]} 32. Kg2 {[%emt 0:08:29]} Qh2+ {[%emt 0:00:45]} 33. Kf1 {[%emt 0:02:42]} Qh1+ {[%emt 0:00:38]} 34. Ke2 {[%emt 0:00:07]} Qe4+ {[%emt 0:00:11]} 35. Kd2 {[%emt 0:00:49]} Qxd4+ {[%emt 0:00:11]} 36. Ke2 {[%emt 0:02:16]} Re6+ {[%emt 0:00:45]} 37. Kf1 {[%emt 0:00:46]} Qd3+ {[%emt 0:00:08]} 38. Kg2 {[%emt 0:00:07]} Rxe1 {[%emt 0:00:27]} 39. Qg4+ {[%emt 0:00:32]} Kf8 {[%emt 0:01:09]} 40. Qb4+ {[%emt 0:00:08]} Re7 {[%emt 0:00:21]} 41. Qd6 {[%emt 0:15:55]} Qe4+ {[%emt 0:15:23]} 42. Kh2 {[%emt 0:00:14]} Qe5 {[%emt 0:01:22]} 43. Qb4 {[%emt 0:00:31]} Qh5+ {[%emt 0:00:30]} 44. Kg2 {[%emt 0:00:14]} Qe5 {[%emt 0:01:21]} 45. Kh2 {[%emt 0:03:04]} d4 {[%emt 0:00:30]} 46. Qd2 {[%emt 0:02:26]} Re6 {[%emt 0:00:46]} 47. Qb4+ {[%emt 0:00:14]} Qd6 {[%emt 0:01:03]} 48. Qxb7 {[%emt 0:01:27]} d3 {[%emt 0:00:41]} 49. Qc8+ {[%emt 0:01:13]} Kg7 {[%emt 0:00:08]} 50. Qc3+ {[%emt 0:00:06]} f6 {[%emt 0:00:29]} 0-1

[Event "DSAM Bad Wildungen 2024"]
[Site "Bad Wildungen"]
[Date "2024.08.01"]
[Round "1.42"]
[White "Spielmann, Jan"]
[Black "Scholz, Paul"]
[Result "1-0"]
[Annotator "NA RC"]
[ECO "C01"]
[WhiteElo "1667"]
[BlackElo "1592"]
[PlyCount "65"]
[EventDate "2024.07.31"]
[EventCountry "GER"]
[SourceTitle "playchess.com"]
[Source "ChessBase"]
[SourceQuality "1"]
[TimeControl "40/5400+30:900+30"]

1. e4 {[%emt 0:00:11]} e6 {[%emt 0:00:08]} 2. d4 {[%emt 0:00:43]} d5 {[%emt 0:00:17]} 3. exd5 {[%emt 0:01:42]} exd5 {[%emt 0:00:14]} 4. Be3 {[%emt 0:04:04]} Bf5 {[%emt 0:01:37]} 5. Bd3 {[%emt 0:01:55]} Bxd3 {[%emt 0:03:17]} 6. Qxd3 {[%emt 0:01:19]} c6 {[%emt 0:01:07]} 7. Nd2 {[%emt 0:02:56]} Bd6 {[%emt 0:04:48]} 8. Ngf3 {[%emt 0:06:30]} Nf6 {[%emt 0:03:24]} 9. h3 {[%emt 1:15:40]} Nbd7 {[%emt 0:03:00]} 10. c3 {[%emt 0:00:00]} h6 {[%emt 0:02:20]} 11. O-O-O {[%emt 0:00:00]} Qa5 {[%emt 0:04:38]} 12. Rhe1 {[%emt 0:00:00]} O-O-O {[%emt 0:03:29]} 13. Kb1 {[%emt 0:00:00]} b5 {[%emt 0:05:54]} 14. Nh4 {[%emt 0:00:00]} g6 {[%emt 0:05:46]} 15. Rc1 {[%emt 0:00:00]} Kb8 {[%emt 0:03:38]} 16. Nhf3 {[%emt 0:00:00]} Qb6 {[%emt 0:04:02]} 17. Ne5 {[%emt 0:00:00]} Rdf8 {[%emt 0:11:36]} 18. Ndf3 {[%emt 0:00:00]} g5 {[%emt 0:04:00]} 19. Qf5 {[%emt 0:00:00]} Qc7 {[%emt 0:01:11]} 20. Nxd7+ {[%emt 0:00:00]} Nxd7 {[%emt 0:02:27]} 21. Ne5 {[%emt 0:00:00]} Nb6 {[%emt 0:02:41]} 22. f4 {[%emt 0:02:35]} f6 {[%emt 0:04:52]} 23. Ng6 {[%emt 0:01:19]} Qh7 {[%emt 0:00:30]} 24. Qe6 {[%emt 0:01:04]} gxf4 {[%emt 0:02:06]} 25. Qxd6+ {[%emt 0:00:56]} Kb7 {[%emt 0:00:22]} 26. Bxf4 {[%emt 0:01:59]} Qxg6+ {[%emt 0:00:31]} 27. Ka1 {[%emt 0:00:15]} Rc8 {[%emt 0:01:30]} 28. Re7+ {[%emt 0:00:24]} Ka6 {[%emt 0:01:00]} 29. Qa3+ {[%emt 0:00:22]} Na4 {[%emt 0:01:02]} 30. b3 {[%emt 0:00:24]} Kb6 {[%emt 0:06:51]} 31. bxa4 {[%emt 0:00:15]} a5 {[%emt 0:00:28]} 32. Qc5+ {[%emt 0:00:17]} Ka6 {[%emt 0:00:08]} 33. Ra7# {[%emt 0:00:17]} 1-0

[Event "DSAM Bad Wildungen 2024"]
[Site "Bad Wildungen"]
[Date "2024.08.01"]
[Round "1.44"]
[White "Betz, Niclas"]
[Black "Enns, Philipp"]
[Result "0-1"]
[Annotator "NA RC"]
[ECO "B12"]
[WhiteElo "1599"]
[BlackElo "1806"]
[PlyCount "68"]
[EventDate "2024.07.31"]
[EventCountry "GER"]
[SourceTitle "playchess.com"]
[Source "ChessBase"]
[SourceQuality "1"]
[TimeControl "40/5400+30:900+30"]

1. e4 {[%emt 0:00:07]} c6 {[%emt 0:00:17]} 2. d4 {[%emt 0:00:25]} d5 {[%emt 0:00:05]} 3. e5 {[%emt 0:01:32]} c5 {[%emt 0:00:32]} 4. c3 {[%emt 0:00:49]} cxd4 {[%emt 0:01:21]} 5. cxd4 {[%emt 0:00:13]} Nc6 {[%emt 0:00:13]} 6. Nc3 {[%emt 0:01:05] B12: Caro-Kann: Advance Variation.} Bf5 {[%emt 0:01:13]} 7. a3 {[%emt 0:01:02]} e6 {[%emt 0:00:34]} 8. Bb5 {[%emt 0:00:27]} Qb6 {[%emt 0:04:40]} 9. Nf3 {[%emt 0:01:28]} Nge7 {[%emt 0:01:18]} 10. O-O {[%emt 0:00:57]} a6 {[%emt 0:02:27]} 11. Ba4 {[%emt 0:03:05]} Bg4 {[%emt 0:07:21]} 12. Be3 {[%emt 0:03:24]} Nf5 {[%emt 0:20:20]} 13. h3 {[%emt 0:01:54]} Bxf3 {[%emt 0:00:17]} 14. Qxf3 {[%emt 0:00:14]} Be7 {[%emt 0:03:02]} 15. g4 {[%emt 0:01:19]} Nh4 {[%emt 0:07:54]} 16. Qg3 {[%emt 0:02:07]} O-O {[%emt 0:01:27]} 17. Bxc6 {[%emt 0:02:18]} Qxc6 {[%emt 0:04:08]} 18. Rac1 {[%emt 0:01:03]} Rac8 {[%emt 0:02:13]} 19. Ne2 {[%emt 0:01:43]} Qb5 {[%emt 0:00:59]} 20. Nc3 {[%emt 0:06:13]} Qxb2 {[%emt 0:01:39]} 21. Na4 {[%emt 0:00:25]} Qxa3 {[%emt 0:03:04]} 22. Nb6 $19 {[%emt 0:01:00]} (22. Ra1 $142 Qd3 23. Nc5 Bxc5 24. dxc5) 22... Rc6 {[%emt 0:05:30]} 23. Rxc6 {[%emt 0:01:58]} bxc6 {[%emt 0:00:03]} 24. Rc1 {[%emt 0:00:25]} a5 {[%emt 0:05:35]} 25. Rxc6 {[%emt 0:02:06]} a4 {[%emt 0:02:55]} 26. Nc8 {[%emt 0:01:21]} Ng6 {[%emt 0:00:58]} 27. Nd6 {[%emt 0:02:42]} Qb4 {[%emt 0:04:08]} 28. f4 {[%emt 0:01:21]} Bh4 {[%emt 0:01:17]} 29. Qf3 {[%emt 0:02:27]} a3 {[%emt 0:03:57]} 30. f5 {[%emt 0:00:39]} a2 {[%emt 0:00:32]} 31. Qf1 {[%emt 0:01:50]} Qa3 {[%emt 0:02:51]} 32. fxg6 {[%emt 0:05:20]} Qxe3+ {[%emt 0:02:21]} 33. Kh1 {[%emt 0:00:19]} fxg6 {[%emt 0:03:03]} 34. Nf7 {[%emt 0:02:51]} Qf2 {[%emt 0:01:03]} 0-1

[Event "DSAM Bad Wildungen 2024"]
[Site "Bad Wildungen"]
[Date "2024.08.01"]
[Round "1.46"]
[White "Arne, Julius"]
[Black "Levytskyi, Oleksandr"]
[Result "1/2-1/2"]
[Annotator "NA RC"]
[ECO "D30"]
[WhiteElo "1475"]
[BlackElo "1580"]
[PlyCount "61"]
[EventDate "2024.07.31"]
[EventCountry "GER"]
[SourceTitle "playchess.com"]
[Source "ChessBase"]
[SourceQuality "1"]
[TimeControl "40/5400+30:900+30"]

1. d4 {[%emt 0:00:03]} d5 {[%emt 0:00:20]} 2. Nf3 {[%emt 0:00:15]} Nf6 {[%emt 0:01:28]} 3. Bf4 {[%emt 0:00:44]} e6 {[%emt 0:01:21]} 4. e3 {[%emt 0:00:44]} Nbd7 {[%emt 0:01:23]} 5. c4 {[%emt 0:00:37]} c5 {[%emt 0:00:15]} 6. Be2 {[%emt 0:01:13]} Be7 {[%emt 0:06:18]} 7. O-O {[%emt 0:00:58]} O-O {[%emt 0:01:19]} 8. Qb3 {[%emt 0:02:50]} dxc4 {[%emt 0:10:25]} 9. Bxc4 {[%emt 0:02:35]} Nb6 {[%emt 0:00:18]} 10. Rd1 {[%emt 0:02:53]} Nxc4 {[%emt 0:13:45]} 11. Qxc4 {[%emt 0:00:35]} Qb6 {[%emt 0:00:43]} 12. b3 {[%emt 0:03:44]} Nd5 {[%emt 0:02:19]} 13. Bg3 {[%emt 0:01:29]} cxd4 {[%emt 0:08:00]} 14. Qxd4 {[%emt 0:03:06]} Bf6 {[%emt 0:02:59]} 15. Qxb6 {[%emt 0:01:55]} Nxb6 {[%emt 0:00:43]} 16. Be5 {[%emt 0:01:55]} Nd7 {[%emt 0:01:14]} 17. Bxf6 {[%emt 0:01:46]} Nxf6 {[%emt 0:00:33]} 18. Nc3 {[%emt 0:02:14]} Bd7 {[%emt 0:00:21]} 19. Ne4 {[%emt 0:02:42]} Nxe4 {[%emt 0:04:35]} 20. Rxd7 {[%emt 0:01:51]} Nc5 {[%emt 0:00:07]} 21. Rc7 {[%emt 0:01:06]} Rfc8 {[%emt 0:00:42]} 22. Rxc8+ {[%emt 0:01:02]} Rxc8 {[%emt 0:00:07]} 23. Rc1 {[%emt 0:00:56]} Rc7 {[%emt 0:00:24]} 24. Kf1 {[%emt 0:01:29]} Kf8 {[%emt 0:00:16]} 25. Ke2 {[%emt 0:01:17]} h6 {[%emt 0:00:15]} 26. b4 {[%emt 0:00:44]} Na6 {[%emt 0:00:16]} 27. Rxc7 {[%emt 0:00:13]} Nxc7 {[%emt 0:00:04]} 28. Kd3 {[%emt 0:00:37]} Ke7 {[%emt 0:00:56]} 29. Ne5 {[%emt 0:02:00]} Kf6 {[%emt 0:02:17]} 30. Nd7+ {[%emt 0:01:34]} Ke7 {[%emt 0:05:20]} 31. Ne5 {[%emt 0:01:22]} 1/2-1/2

[Event "DSAM Bad Wildungen 2024"]
[Site "Bad Wildungen"]
[Date "2024.08.01"]
[Round "2.1"]
[White "Tonndorf, Matthias"]
[Black "Boehme, Sebastian"]
[Result "0-1"]
[Annotator "RC"]
[ECO "A13"]
[WhiteElo "2187"]
[BlackElo "2232"]
[PlyCount "67"]
[EventDate "2024.07.31"]
[EventCountry "GER"]
[SourceTitle "playchess.com"]
[Source "ChessBase"]
[SourceQuality "1"]
[TimeControl "40/5400+30:900+30"]

1. c4 {[%emt 0:00:02]} e6 {[%emt 0:00:22]} 2. Nf3 {[%emt 0:00:39]} d5 {[%emt 0:00:16]} 3. e3 {[%emt 0:00:15]} Nf6 {[%emt 0:00:13]} 4. b3 {[%emt 0:00:20]} Bd6 {[%emt 0:00:47]} 5. Bb2 {[%emt 0:00:33]} O-O {[%emt 0:00:09]} 6. Be2 {[%emt 0:00:22]} Re8 {[%emt 0:03:03]} 7. O-O {[%emt 0:02:47]} dxc4 {[%emt 0:02:54]} 8. bxc4 {[%emt 1:29:32]} c5 {[%emt 1:26:46]} 9. d3 {[%emt 0:00:30]} Nc6 {[%emt 0:00:00]} 10. Nbd2 {[%emt 0:00:00]} e5 {[%emt 0:00:00]} 11. Qb3 {[%emt 0:00:00]} b6 {[%emt 0:00:00]} 12. Rfd1 {[%emt 0:00:00]} h6 {[%emt 0:00:00]} 13. Bf1 {[%emt 0:00:00]} Bf5 {[%emt 0:00:00]} 14. g3 {[%emt 0:00:00]} Qc7 {[%emt 0:00:00]} 15. Bg2 {[%emt 0:00:00]} Rad8 {[%emt 0:00:00]} 16. Nh4 {[%emt 0:00:00]} Bh7 {[%emt 0:00:00]} 17. a3 {[%emt 0:00:00]} Be7 {[%emt 0:00:00]} 18. Bxc6 {[%emt 0:00:00]} Qxc6 {[%emt 0:00:00]} 19. e4 {[%emt 0:05:00]} Qd7 {[%emt 0:00:00]} 20. Nf1 {[%emt 0:00:00]} Qh3 {[%emt 0:00:00]} 21. f3 {[%emt 0:00:00]} Nh5 {[%emt 0:00:00]} 22. Ng2 {[%emt 0:00:00]} Bg5 {[%emt 0:00:00]} 23. a4 {[%emt 0:00:00]} f5 {[%emt 0:00:00]} 24. exf5 {[%emt 0:00:00]} Bxf5 {[%emt 0:00:00]} 25. a5 {[%emt 0:00:00]} Bd7 {[%emt 0:00:00]} 26. axb6 {[%emt 0:00:00]} axb6 {[%emt 0:00:00]} 27. Ra6 {[%emt 0:00:00]} Bc6 {[%emt 0:00:00]} 28. Ne1 {[%emt 0:00:00]} Rf8 {[%emt 0:00:00]} 29. Rxb6 {[%emt 0:00:00]} Rxf3 {[%emt 0:00:00]} 30. Nxf3 {[%emt 0:00:00]} Bxf3 {[%emt 0:00:00]} 31. Qc2 {[%emt 0:00:00]} Nxg3 {[%emt 0:00:00]} 32. Re1 {[%emt 0:00:00]} Nxf1 {[%emt 0:00:00]} 33. Bc1 {[%emt 0:01:42]} Bd2 {[%emt 0:00:00]} 34. Qd1 {[%emt 0:05:48]} 0-1